Workbook

Sheet 3 Coefficients
D1: Quadratic Functions
D3: This program lets you investigate the
D4: behavior of quadratic functions
D7: based on the values of a, b and c.
C10: What is the the value of a (- 3 to 3)? | E10: =G10/10-3 -> 0.4 | F10: 62 | G10: 34
C12: What is the the value of b (- 7 to 7)? | E12: =G12/100 -7 -> 1.67 | F12: 62 | G12: 867
C14: What is the the value of c (- 5 to 5)? | E14: =G14/100 -5 -> -1.34 | F14: 62 | G14: 366
M16: ="y = "&TEXT(a,"0.0")&"x^2 + ("&TEXT(b,"0.00")& ")x + ("&TEXT(cc,"0.00")&")" -> y = 0.4x^2 + (1.67)x + (-1.34)
B19: Click each item below for suggestions and investigations
D20: Item 1
D21: Item 2
D22: Item 3
A26: Created by: Sheldon P. Gordon
A27: Farmingdale StateCollege
A28: Development of this module was supported by the
A29: NSF's Division of Undergraduate Education
A30: under grants DUE-0310123 and DUE-0442160.

Sheet 3 Points
D1: Quadratic Functions
B3: This program lets you investigate the
D4: behavior of the quadratic function
D7: through three given points.
D8: (x1, y1), (x2, y2), and (x3, y3)
C11: For the first point (x1, y1):
D12: What is x1 (1 to 5)? | F12: =G12/10-5 -> -1 | G12: 40
D14: What is y1 (1 to 5)? | F14: =G14/10-10 -> -3.3 | G14: 67
C16: For the second point (x2, y2):
D17: What is x2 (1 to 5)? | F17: =G17/10-5 -> 0.6 | G17: 56
D19: What is y2 (1 to 5)? | F19: =G19/10-10 -> -1.4 | G19: 86
C21: For the third point (x3, y3):
D22: What is x3 (1 to 5)? | F22: =G22/10-5 -> -0.6 | G22: 44
D24: What is y3 (1 to 5)? | F24: =G24/10-10 -> -2.9 | G24: 71
B29: Click each item below for suggestions and investigations
D30: Item 1
D31: Item 2

Sheet Sheet3
A1: 3 Coefficients
B2: -2 | C2: =a*B2^2+b*B2+cc -> -3.08 | D2: 0 | E2: 1
B3: 1 | C3: =a*B3^2+b*B3+cc -> 0.73
B4: 3 | C4: =a*B4^2+b*B4+cc -> 7.27
A6: =a -> 0.4 | B6: =-b/2/a -> -2.0875 | C6: =a*B6^2+b*B6+cc -> -3.0830625
A7: =b -> 1.67
A8: =cc -> -1.34
A12: 3 Points
A13: ='3 Points'!F12 -> -1 | B13: ='3 Points'!F14 -> -3.3 | C13: 0 | D13: =a -> 0.4
A14: ='3 Points'!F17 -> 0.6 | B14: ='3 Points'!F19 -> -1.4 | C14: =x.one -> 0
A15: ='3 Points'!F22 -> -0.6 | B15: ='3 Points'!F24 -> -2.9
C16: 0 | D16: =a -> 0.4

Sheet Sheet4
